bitfinex/quotes_SOLUSD_20220129
["timestamp","ask_amount","ask_price","bid_price","bid_amount"]
[1643456861258,23.0809,96.524,96.464,0.25]
[1643456863659,6.0,96.514,96.464,0.25]
[1643456863862,0.25,96.513,96.465,2.87702886]
[1643456864059,0.25,96.513,96.464,0.25]
[1643456866861,0.25,96.513,96.465,2.87792313]
[1643456867261,0.25,96.513,96.466,0.25]
[1643456868266,0.25,96.513,96.467,2.87772643]
[1643456868663,0.25,96.513,96.468,0.25]
[1643456868864,0.25,96.513,96.469,2.87772643]
[1643456869068,0.25,96.513,96.467,2.87772643]
[1643456869266,0.25,96.513,96.468,0.25]
[1643456869668,0.25,96.513,96.469,2.87772643]
[1643456869869,0.25,96.513,96.47,0.25]
[1643456870069,0.25,96.513,96.471,2.87772643]
[1643456870268,0.25,96.513,96.472,0.25]
[1643456870467,0.25,96.513,96.473,2.87772643]
[1643456870869,0.25,96.513,96.474,0.25]
[1643456871271,0.25,96.513,96.475,2.87772643]
[1643456871969,0.25,96.513,96.476,0.25]
[1643456872169,0.25,96.513,96.477,2.87772643]
[1643456872371,0.25,96.513,96.478,0.25]
[1643456873772,0.25,96.513,96.469,0.25]
[1643456873973,0.25,96.513,96.47,2.88250727]
[1643456874372,0.25,96.513,96.471,0.25]
[1643456874572,0.25,96.513,96.472,2.88250727]
[1643456874770,6.0,96.514,96.473,0.25]
[1643456875270,6.0,96.514,96.474,2.88250727]
[1643456875771,6.0,96.514,96.475,0.25]
[1643456875974,6.0,96.514,96.476,2.88250727]
[1643456876371,6.0,96.514,96.477,0.25]
[1643456876773,6.0,96.514,96.478,2.88250727]
[1643456877170,6.0,96.514,96.479,0.25]
[1643456877670,6.0,96.514,96.48,2.88250727]
[1643456877871,6.0,96.514,96.481,0.25]
[1643456879071,6.0,96.514,96.472,0.25]
[1643456879671,6.0,96.514,96.473,2.88401052]
[1643456879873,6.0,96.514,96.474,0.25]
[1643456880075,6.0,96.514,96.475,2.88401052]
[1643456880272,6.0,96.514,96.467,2.88057764]
[1643456880474,6.0,96.514,96.468,2.88057764]
[1643456880674,6.0,96.514,96.469,2.88057764]
[1643456881074,6.0,96.514,96.47,2.88057764]
[1643456881273,6.0,96.514,96.471,0.25]
[1643456881476,6.0,96.514,96.472,2.88401052]
[1643456881878,6.0,96.514,96.473,0.25]
[1643456882080,6.0,96.514,96.474,2.88401052]
[1643456882275,6.0,96.514,96.475,0.25]
[1643456882475,6.0,96.514,96.476,2.88401052]
[1643456882884,6.0,96.514,96.477,0.25]
[1643456883279,6.0,96.514,96.478,2.88401052]
[1643456883882,6.0,96.514,96.479,0.25]
[1643456884482,6.0,96.514,96.48,2.88401052]
[1643456884780,6.0,96.514,96.481,0.25]
[1643456885180,6.0,96.514,96.482,2.88412456]
[1643456885379,6.0,96.537,96.483,0.25]
[1643456885580,6.0,96.536,96.483,0.25]
[1643456885779,6.25,96.536,96.484,2.88412456]
[1643456886180,6.25,96.536,96.503,34.43895548]
[1643456886481,6.25,96.536,96.504,1.44224374]
[1643456887784,6.0,96.536,96.504,1.44224374]
[1643456888083,6.0,96.536,96.506,1.44224374]
[1643456888683,6.0,96.536,96.505,1.44224374]
[1643456889284,6.0,96.536,96.504,1.44224374]
[1643456889484,6.0,96.536,96.506,1.44224374]
[1643456889685,6.0,96.536,96.503,34.43895548]
[1643456889686,6.0,96.536,96.505,1.44224374]
[1643456889884,6.0,96.536,96.506,1.44224374]
[1643456890284,0.25,96.535,96.504,1.44224374]
[1643456890484,24.2043,96.535,96.504,1.44224374]
[1643456890685,24.2043,96.535,96.501,1.44224374]
[1643456890885,6.0,96.525,96.501,1.44224374]
[1643456891087,6.0,96.525,96.502,44.77159762]
[1643456891286,0.25,96.524,96.502,44.77159762]
[1643456891785,6.0,96.525,96.502,44.77159762]
[1643456891988,6.0,96.525,96.502,46.21384136]
[1643456892187,6.0,96.525,96.502,44.77159762]
[1643456893089,6.0,96.525,96.505,1.44224374]
[1643456894492,6.0,96.525,96.502,44.77159762]
[1643456894693,6.0,96.525,96.502,46.21384136]
[1643456895505,6.0,96.525,96.503,1.44224374]
[1643456895906,6.0,96.525,96.502,46.21384136]
[1643456896306,6.0,96.525,96.505,1.44224374]
[1643456896510,6.0,96.525,96.506,1.44224374]
[1643456897005,6.0,96.525,96.507,0.25]
[1643456897309,23.9543,96.535,96.507,0.25]
[1643456897711,23.9543,96.535,96.508,1.44224374]
[1643456897911,23.9543,96.535,96.507,1.44224374]
[1643456898313,0.25,96.534,96.504,1.44224374]
[1643456898615,0.25,96.534,96.503,1.44224374]
[1643456898812,0.25,96.534,96.502,46.21384136]
[1643456899413,23.9543,96.535,96.502,46.21384136]
[1643456899613,23.9543,96.535,96.503,0.25]
[1643456900016,24.2219,96.547,96.506,1.44224374]
[1643456900215,24.2219,96.547,96.508,1.44224374]
[1643456900413,0.25,96.546,96.507,1.44224374]
[1643456900914,0.25,96.546,96.508,1.44224374]
[1643456901118,6.0,96.537,96.506,1.44224374]
[1643456901317,6.0,96.537,96.505,1.44224374]
[1643456901519,6.0,96.536,96.504,1.44224374]
[1643456902618,6.0,96.536,96.503,1.44224374]
[1643456903517,23.5469,96.535,96.504,1.44224374]
[1643456904124,0.25,96.534,96.502,1.44224374]
[1643456904417,23.5469,96.535,96.503,43.0824583]
[1643456904618,23.5469,96.535,96.505,1.44224374]
[1643456904819,0.25,96.534,96.505,1.44224374]
[1643456905020,0.25,96.534,96.504,1.44224374]
[1643456905218,0.25,96.534,96.502,1.44224374]
[1643456905421,0.25,96.534,96.501,1.44224374]
[1643456905622,23.5469,96.535,96.501,1.44224374]
[1643456905819,0.25,96.534,96.502,39.4681519]
[1643456906820,0.25,96.534,96.502,40.91039564]
[1643456907021,0.25,96.534,96.501,1.44224374]
[1643456908023,103.7,96.524,96.499,4.374e-05]
[1643456908324,103.7,96.524,96.451,2.88057764]
[1643456908325,0.25,96.523,96.451,2.88057764]
[1643456908523,6.0,96.514,96.438,2.88057764]
[1643456908723,103.7,96.513,96.428,2.88057764]
[1643456908924,103.7,96.511,96.427,2.88057764]
[1643456909127,6.0,96.501,96.428,34.97503512]
[1643456909323,0.25,96.5,96.428,42.25664476]
[1643456909522,0.25,96.5,96.429,0.25]
[1643456909922,0.25,96.5,96.428,34.97503512]
[1643456909923,6.25,96.5,96.428,34.97503512]
[1643456910126,6.0,96.49,96.428,34.97503512]
[1643456910325,23.932,96.489,96.428,34.97503512]
[1643456910524,6.0,96.479,96.428,34.97503512]
[1643456910825,0.25,96.478,96.429,7.27621884]
[1643456911625,6.0,96.479,96.429,7.27621884]
[1643456911825,6.0,96.479,96.43,6.02760255]
[1643456912025,6.0,96.479,96.431,2.8757906]
[1643456912227,23.8342,96.512,96.431,7.27621884]
[1643456912425,24.2036,96.511,96.441,6.0]
[1643456912629,14.96,96.58,96.45,14.96]
[1643456912837,15.3371,96.58,96.468,2.88057764]
[1643456913034,15.3371,96.58,96.481,144.31485874]
[1643456913235,48.1632,96.603,96.482,2.87250262]
[1643456913433,48.1632,96.603,96.491,6.0]
[1643456913634,48.1632,96.603,96.5,15.539]
[1643456913833,48.1632,96.603,96.501,0.25]
[1643456914036,6.0,96.593,96.511,45.3182312]
[1643456914434,6.0,96.593,96.512,0.25]
[1643456915239,6.0,96.593,96.511,45.3182312]
[1643456915434,6.0,96.593,96.512,0.25]
[1643456915435,6.0,96.592,96.512,0.25]
[1643456915835,0.25,96.591,96.512,0.25]
[1643456916436,6.0,96.59,96.513,2.90181195]
[1643456916635,6.0,96.59,96.523,6.0]
[1643456916836,6.0,96.59,96.524,0.25]
[1643456917436,48.1632,96.603,96.524,0.25]
[1643456917639,48.1632,96.603,96.525,2.90181195]
[1643456917839,48.1632,96.603,96.526,0.25]
[1643456918038,48.1632,96.603,96.535,6.0]
[1643456918438,48.1632,96.603,96.536,3.15181195]
[1643456918639,48.1632,96.603,96.546,6.0]
[1643456918839,48.1632,96.603,96.547,41.42023515]
[1643456919841,0.25,96.602,96.548,2.90181195]
[1643456920040,0.25,96.602,96.558,6.0]
[1643456920249,0.25,96.602,96.559,0.25]
[1643456920448,15.717,96.633,96.559,0.25]
[1643456920645,15.717,96.633,96.559,3.15181195]
[1643456920846,47.8729,96.639,96.56,2.90181195]
[1643456921047,47.8729,96.639,96.57,6.0]
[1643456921246,47.8729,96.639,96.571,0.25]
[1643456921447,0.38761906,96.67,96.571,0.25]
[1643456921448,0.38761906,96.67,96.571,3.15181195]
[1643456921649,0.38761906,96.67,96.581,6.0]
[1643456921847,23.71428664,96.659,96.582,45.01975392]
[1643456922047,0.38761906,96.67,96.582,53.92156587]
[1643456922246,0.38761906,96.67,96.582,51.01975392]
[1643456922646,104.08761906,96.67,96.583,2.90181195]
[1643456922847,104.08761906,96.67,96.584,0.25]
[1643456923049,22.47595015,96.664,96.593,6.0]
[1643456923348,22.47595015,96.664,96.594,0.25]
[1643456923549,22.47595015,96.664,96.595,6.0]
[1643456923751,22.47595015,96.664,96.596,0.25]
[1643456923948,22.47595015,96.664,96.594,0.25]
[1643456924152,6.0,96.654,96.594,0.25]
[1643456924352,0.25,96.653,96.594,0.25]
[1643456925148,0.25,96.653,96.593,0.25]
[1643456925750,0.25,96.653,96.583,0.25]
[1643456925949,0.25,96.653,96.582,44.76975392]
[1643456926149,0.25,96.653,96.583,0.25]
[1643456926754,0.25,96.653,96.582,44.76975392]
[1643456926951,103.95,96.653,96.582,44.76975392]
[1643456927351,103.7,96.642,96.582,44.76975392]
[1643456927556,6.0,96.632,96.582,44.76975392]
[1643456927754,0.25,96.631,96.582,44.76975392]
[1643456928157,6.0,96.623,96.582,44.76975392]
[1643456928358,0.25,96.622,96.582,44.76975392]
[1643456929165,0.25,96.622,96.583,0.25]
[1643456929565,6.0,96.623,96.583,0.25]
[1643456929866,0.25,96.622,96.583,0.25]
[1643456930772,23.79054287,96.639,96.583,0.25]
[1643456931167,6.0,96.629,96.583,0.25]
[1643456931367,0.25,96.628,96.582,44.76975392]
[1643456931790,0.25,96.628,96.583,0.25]
[1643456932592,0.25,96.628,96.582,44.76975392]
[1643456933093,0.25,96.628,96.583,0.25]
[1643456933295,48.0544,96.649,96.583,3.15181195]
[1643456933491,6.0,96.639,96.583,3.15181195]
[1643456933691,0.25,96.638,96.582,44.76975392]
[1643456934292,25.03433854,96.638,96.583,0.25]
[1643456934493,6.0,96.628,96.583,0.25]
[1643456934693,0.38761906,96.67,96.583,0.25]
[1643456934894,0.38761906,96.67,96.544,2.90181195]
[1643456934895,112.8,96.665,96.544,2.90181195]
[1643456935094,112.8,96.665,96.513,3.0]
[1643456935095,2.95669142,96.662,96.513,3.0]
[1643456935393,112.8,96.665,96.51,14.96]
[1643456935394,13.07844819,96.657,96.51,14.96]
[1643456935593,62.21,96.656,96.51,14.96]
[1643456935797,103.7,96.649,96.51,14.96]
[1643456935999,51.804,96.63,96.511,40.15691248]
[1643456936196,47.1808,96.629,96.511,40.15691248]
[1643456936398,5.6920466,96.619,96.511,40.15691248]
[1643456936596,11.6920466,96.619,96.511,40.15691248]
[1643456936796,15.541,96.61,96.512,0.25]
[1643456936997,6.0,96.6,96.512,0.25]
[1643456937297,0.25,96.599,96.512,0.25]
[1643456937497,22.8414,96.609,96.512,0.25]
[1643456937698,22.8414,96.609,96.521,6.0]
[1643456937899,22.8414,96.609,96.522,0.25]
[1643456938801,6.0,96.599,96.522,0.25]
[1643456939400,22.8414,96.609,96.522,0.25]
[1643456939599,22.8414,96.609,96.53,6.0]
[1643456939801,30.494,96.65,96.531,0.25]
[1643456940001,6.0,96.619,96.532,6.0]
[1643456940401,0.25,96.618,96.533,0.25]
[1643456941004,0.25,96.618,96.54,6.0]
[1643456941403,24.6622,96.649,96.55,14.96]
[1643456941605,24.6622,96.649,96.56,6.0]
[1643456941803,24.6622,96.649,96.561,0.25]
[1643456941804,0.25,96.648,96.561,0.25]
[1643456942003,0.25,96.648,96.561,41.01432251]
[1643456942204,0.25,96.648,96.57,14.96]
[1643456942405,0.25,96.648,96.571,6.25]
[1643456942605,0.25,96.648,96.581,6.0]
[1643456942803,6.0,96.659,96.582,0.25]
[1643456943204,22.5258,96.669,96.582,0.25]
[1643456944103,22.5258,96.669,96.581,0.25]
[1643456944306,0.25,96.668,96.581,0.25]
[1643456944505,6.0,96.659,96.581,0.25]
[1643456944908,0.5336709,96.658,96.581,0.25]
[1643456946609,0.5336709,96.658,96.57,14.96]
[1643456946809,0.5336709,96.658,96.571,0.25]
[1643456947010,6.5336709,96.658,96.57,14.96]
[1643456948417,6.5336709,96.658,96.571,0.25]
[1643456952450,6.5336709,96.658,96.57,14.96]
[1643456952647,103.7,96.657,96.57,14.96]
[1643456952848,0.25,96.656,96.57,14.96]
[1643456953051,103.7,96.646,96.57,14.96]
[1643456953249,4.58413264,96.645,96.57,14.96]
[1643456953450,103.7,96.635,96.57,14.96]
[1643456953649,109.7,96.635,96.57,14.96]
[1643456953854,0.25,96.634,96.57,14.96]
[1643456954751,0.25,96.634,96.561,40.76432251]
[1643456954951,0.25,96.634,96.562,0.25]
[1643456956553,103.7,96.628,96.542,0.25]
[1643456956753,0.25,96.627,96.528,0.25]
[1643456956953,6.0,96.618,96.537,6.0]
[1643456957152,6.0,96.618,96.52,14.96]
[1643456957153,23.7647,96.617,96.53,6.0]
[1643456957454,20.50773631,96.616,96.539,6.0]
[1643456957655,6.0,96.607,96.539,6.0]
[1643456957853,6.25,96.606,96.541,6.0]
[1643456958261,6.25,96.606,96.542,0.25]
[1643456959956,0.25,96.606,96.542,0.25]
[1643456960158,6.0,96.596,96.542,0.25]
[1643456960357,0.25,96.595,96.542,0.25]
[1643456961361,6.0,96.607,96.542,0.25]
[1643456961563,23.7647,96.617,96.542,0.25]
[1643456962665,23.7647,96.617,96.541,6.0]
[1643456962862,6.0,96.607,96.541,6.0]
[1643456963264,0.25,96.606,96.541,6.0]
[1643456964265,0.25,96.606,96.542,0.25]
[1643456965265,0.25,96.606,96.531,37.24105455]
[1643456965867,6.25,96.606,96.531,37.24105455]
[1643456966066,6.25,96.606,96.532,0.25]
[1643456967069,0.25,96.606,96.532,0.25]
[1643456967269,8.14401085,96.596,96.532,0.25]
[1643456967569,6.0,96.586,96.531,37.24105455]
[1643456967769,103.95,96.585,96.504,2.88057764]
[1643456967968,128.286,96.585,96.484,2.88057764]
[1643456968172,6.0,96.575,96.48,2.88057764]
[1643456968370,6.0,96.575,96.47,14.96]
[1643456968371,103.95,96.574,96.485,2.87419048]
[1643456968569,6.0,96.564,96.481,2.87419048]
[1643456968770,6.0,96.564,96.482,44.30502607]
[1643456968997,24.3283,96.594,96.492,6.0]
[1643456969172,6.0,96.584,96.492,6.0]
[1643456969369,0.25,96.583,96.5,6.0]
[1643456969570,0.25,96.583,96.503,6.0]
[1643456969771,0.25,96.583,96.493,0.25]
[1643456970172,6.0,96.581,96.493,0.25]
[1643456970372,0.25,96.58,96.493,0.25]
[1643456970571,23.0197,96.58,96.493,0.25]
[1643456970773,23.0197,96.58,96.491,0.25]
[1643456970971,6.0,96.57,96.491,0.25]
[1643456971372,0.25,96.569,96.491,0.25]
[1643456972874,22.6864,96.589,96.5,6.0]
[1643456973074,22.6864,96.589,96.502,6.0]
[1643456973273,22.6864,96.589,96.503,0.25]
[1643456973674,6.0,96.579,96.503,3.13834808]
[1643456973874,6.0,96.579,96.504,0.25]
[1643456974281,0.25,96.578,96.504,0.25]
[1643456975379,0.25,96.578,96.501,0.25]
[1643456975780,0.25,96.578,96.501,3.13834808]
[1643456975980,0.25,96.578,96.511,6.0]
[1643456976180,0.25,96.578,96.512,37.09293082]
[1643456976380,0.25,96.578,96.512,43.34293082]
[1643456976998,0.25,96.578,96.512,37.34293082]
[1643456980602,0.25,96.578,96.512,37.09293082]
[1643456982007,0.25,96.578,96.48,14.96]
[1643456982206,0.25,96.578,96.481,0.25]
[1643456982406,6.0,96.57,96.481,0.25]
[1643456982609,6.0,96.57,96.49,6.0]
[1643456982807,23.8463,96.569,96.491,0.25]
[1643456983009,23.8463,96.569,96.491,39.51307506]
[1643456984909,0.25,96.569,96.491,39.51307506]
[1643456985309,23.6166,96.594,96.491,39.51307506]
[1643456985510,23.6166,96.594,96.5,6.0]
[1643456985711,23.6166,96.594,96.501,6.0]
[1643456986012,23.6166,96.594,96.501,6.25]
[1643456986212,23.6166,96.594,96.501,6.0]
[1643456986412,23.6166,96.594,96.502,0.25]
[1643456986613,6.0,96.584,96.502,0.25]
[1643456986815,0.25,96.583,96.502,0.25]
[1643456987211,0.25,96.583,96.51,14.96]
[1643456987413,0.25,96.583,96.51,24.63]
[1643456987612,0.25,96.583,96.521,35.29357416]
[1643456988012,0.25,96.583,96.531,6.0]
[1643456988813,0.25,96.593,96.531,6.0]
[1643456989618,0.25,96.593,96.521,35.29357416]
[1643456990816,6.0,96.584,96.521,35.29357416]
[1643456991319,0.25,96.583,96.521,35.29357416]
[1643456991519,0.25,96.583,96.531,6.0]
[1643456992323,0.25,96.593,96.531,6.0]
[1643456995557,6.0,96.584,96.531,6.0]
[1643456995757,0.25,96.583,96.521,35.29357416]
[1643456996158,0.25,96.583,96.531,6.0]
[1643456996958,0.25,96.593,96.531,6.0]
[1643456997764,6.0,96.584,96.521,35.29357416]
[1643456998061,23.2554,96.583,96.521,35.29357416]
[1643456998262,23.5054,96.583,96.521,35.29357416]
[1643456998461,6.0,96.573,96.521,35.29357416]
[1643456998860,0.25,96.572,96.521,35.29357416]
[1643456999663,0.25,96.572,96.49,14.96]
[1643456999861,23.2377,96.572,96.512,6.0]
[1643457000063,6.0,96.562,96.501,6.0]
[1643457000261,0.25,96.561,96.501,6.0]
[1643457000661,1.15371863,96.561,96.502,38.55215889]
[1643457000860,25.77811863,96.561,96.502,38.55215889]
[1643457001062,25.77811863,96.561,96.512,6.0]
[1643457001662,24.8744,96.561,96.513,0.25]
[1643457001861,0.25,96.561,96.513,0.25]
[1643457002266,0.25,96.584,96.513,0.25]
[1643457002463,6.25,96.584,96.513,6.25]
[1643457002771,42.9104102,96.583,96.513,6.0]
[1643457003179,6.0,96.573,96.512,6.0]
[1643457003379,0.25,96.572,96.513,0.25]
[1643457004384,0.25,96.572,96.512,6.0]
[1643457004786,0.25,96.572,96.513,0.25]
[1643457006285,0.25,96.582,96.513,0.25]
[1643457006907,6.0,96.573,96.513,6.25]
[1643457007312,0.25,96.572,96.513,6.25]
[1643457007709,24.4223,96.572,96.513,6.25]
[1643457012912,19.02215691,96.571,96.513,6.25]
[1643457013113,24.4223,96.572,96.513,6.25]
[1643457014116,24.97722251,96.571,96.513,6.25]
[1643457014315,0.25,96.57,96.513,6.25]
[1643457015517,6.0,96.584,96.513,6.25]
[1643457015916,24.6123,96.583,96.513,6.25]
[1643457016118,23.98602361,96.582,96.513,6.25]
[1643457016317,0.25,96.581,96.513,6.25]
[1643457017017,6.0,96.572,96.513,6.25]
[1643457017219,22.6317,96.571,96.513,6.25]
[1643457017420,22.8817,96.571,96.513,6.25]
[1643457017717,1.35584534,96.56,96.513,6.25]
[1643457018117,22.8817,96.571,96.513,6.25]
[1643457018320,15.542,96.6,96.513,6.25]
[1643457018517,6.0,96.585,96.513,6.25]
[1643457018916,6.25,96.584,96.513,6.25]
[1643457019119,21.29628523,96.583,96.513,6.25]
[1643457019319,23.003,96.582,96.513,6.25]
[1643457019519,6.0,96.572,96.513,6.25]
[1643457019923,0.25,96.571,96.513,6.25]
[1643457020420,23.3731,96.571,96.513,6.25]
[1643457020623,6.0,96.561,96.513,6.25]
[1643457020821,23.3731,96.571,96.513,6.25]
[1643457021021,4.04558372,96.568,96.513,6.25]
[1643457021422,0.25,96.567,96.513,6.25]
[1643457023328,0.25,96.57,96.513,6.25]
[1643457024130,20.41435433,96.57,96.513,6.25]
[1643457025760,20.41435433,96.57,96.513,0.25]
[1643457025959,6.0,96.56,96.513,0.25]
[1643457026160,20.41435433,96.57,96.504,0.25]
[1643457027161,20.41435433,96.57,96.513,6.0]
[1643457027361,20.41435433,96.57,96.514,0.25]
[1643457028462,6.0,96.56,96.514,0.25]
[1643457028863,0.25,96.559,96.514,0.25]
[1643457029863,0.25,96.569,96.514,0.25]
[1643457030663,6.0,96.56,96.514,0.25]
[1643457030861,6.0,96.56,96.508,1.442226]
[1643457030862,0.25,96.559,96.508,1.442226]
[1643457031267,0.25,96.559,96.494,1.442226]
[1643457031470,0.25,96.559,96.49,1.442226]
[1643457031471,53.5578,96.559,96.49,1.442226]
[1643457031770,6.0,96.551,96.489,1.442226]
[1643457031966,6.0,96.549,96.489,1.442226]
[1643457032165,6.0,96.549,96.488,1.442226]
[1643457032365,6.0,96.54,96.493,1.442226]
[1643457032565,6.0,96.54,96.487,1.442226]
[1643457032770,0.25,96.539,96.487,1.442226]
[1643457033168,0.25,96.539,96.486,1.442226]
[1643457033568,6.0,96.54,96.487,0.25]
[1643457033770,6.0,96.54,96.488,1.442226]
[1643457034169,6.0,96.54,96.49,1.442226]
[1643457034370,6.0,96.54,96.491,1.692226]
[1643457034571,6.0,96.54,96.491,1.442226]
[1643457034772,6.0,96.54,96.492,0.25]
[1643457035370,6.0,96.54,96.49,1.442226]
[1643457035371,6.0,96.54,96.487,1.442226]
[1643457035573,0.25,96.539,96.487,1.442226]
[1643457035772,0.25,96.539,96.488,0.25]
[1643457036777,0.25,96.539,96.486,0.25]
[1643457037181,0.25,96.539,96.484,1.442226]
[1643457037477,0.25,96.539,96.481,45.59513866]
[1643457037879,24.0593,96.539,96.481,44.15291266]
[1643457038094,6.0,96.529,96.481,44.15291266]
[1643457038278,20.41435433,96.528,96.481,44.15291266]
[1643457038683,23.5529,96.559,96.482,3.13782369]
[1643457038884,0.25,96.558,96.491,6.0]
[1643457039081,0.25,96.558,96.496,6.0]
[1643457039283,23.5529,96.559,96.497,0.25]
[1643457039480,1.44015397,96.591,96.5,14.96]
[1643457039681,18.3295203,96.591,96.501,127.399]
[1643457039885,18.3295203,96.591,96.514,32.80568388]
[1643457040086,18.3295203,96.591,96.524,6.0]
[1643457040283,18.3295203,96.591,96.518,1.442226]
[1643457040284,23.8681,96.59,96.518,1.442226]
[1643457040480,23.8681,96.59,96.518,0.25]
[1643457040684,23.8681,96.59,96.529,39.3923918]
[1643457040980,0.25,96.589,96.539,6.0]
[1643457041380,0.25,96.589,96.54,0.25]
[1643457041586,0.25,96.589,96.54,6.25]
[1643457041785,0.25,96.589,96.529,39.3923918]
[1643457042184,6.0,96.58,96.529,39.3923918]
[1643457042384,0.25,96.579,96.529,39.3923918]
[1643457042583,0.25,96.579,96.53,0.25]
[1643457043585,0.25,96.589,96.53,0.25]
[1643457044609,6.0,96.58,96.506,1.442226]
[1643457044810,0.25,96.579,96.53,0.25]
[1643457045411,23.3922,96.579,96.53,0.25]
[1643457045813,6.0,96.569,96.518,1.442226]
[1643457046011,7.01234865,96.574,96.511,0.25]
[1643457046213,0.25,96.568,96.511,0.25]
[1643457046610,6.0,96.564,96.511,0.25]
[1643457046812,0.25,96.563,96.511,0.25]
[1643457048018,0.25,96.578,96.511,0.25]
[1643457048816,21.73966293,96.578,96.511,0.25]
[1643457049018,6.0,96.568,96.511,0.25]
[1643457049217,0.25,96.567,96.508,37.55543471]
[1643457049516,0.25,96.567,96.511,0.25]
[1643457050415,0.25,96.567,96.508,37.55543471]
[1643457051019,23.7172,96.567,96.508,37.55543471]
[1643457051827,23.7172,96.567,96.509,0.25]
[1643457052027,3.85220602,96.556,96.509,0.25]
[1643457052426,0.25,96.555,96.509,0.25]
[1643457054029,6.0,96.546,96.509,0.25]
[1643457054230,6.0,96.546,96.5,14.96]
[1643457054432,0.25,96.545,96.5,14.96]
[1643457056538,6.0,96.546,96.5,14.96]
[1643457056738,6.0,96.546,96.501,0.25]
[1643457057136,3.85220602,96.556,96.501,0.25]
[1643457057536,6.0,96.546,96.501,0.25]
[1643457057937,6.0,96.546,96.498,43.10381696]
[1643457058138,0.25,96.545,96.498,43.10381696]
[1643457058438,0.25,96.545,96.499,0.25]
[1643457058638,6.0,96.546,96.499,0.25]
[1643457060448,3.85220602,96.556,96.499,0.25]
[1643457061850,0.25,96.555,96.499,0.25]
[1643457063778,0.25,96.555,96.481,22.9342]
[1643457063779,0.25,96.555,96.488,0.25]
[1643457063982,6.0,96.546,96.482,1.442226]
[1643457064180,22.9774,96.545,96.479,1.442226]
[1643457064378,103.7,96.544,96.47,1.442226]
[1643457064581,21.48966293,96.533,96.466,1.442226]
[1643457064779,0.25,96.532,96.466,1.442226]
[1643457064983,6.0,96.523,96.462,1.442226]
[1643457065180,6.0,96.523,96.46,1.442226]
[1643457065381,6.25,96.522,96.46,1.442226]
[1643457065580,6.25,96.522,96.459,1.442226]
[1643457065780,6.25,96.522,96.46,46.29947707]
[1643457065981,24.6964,96.521,96.46,47.74170307]
[1643457066181,24.6964,96.521,96.461,1.442226]
[1643457066382,6.0,96.511,96.461,1.442226]
[1643457066584,6.0,96.508,96.46,47.74170307]
[1643457066788,0.25,96.507,96.46,47.74170307]
[1643457067181,6.0,96.508,96.46,46.29947707]
[1643457067381,15.551,96.55,96.46,46.29947707]